Cogmind - Beta 15 @@@ ROGUE MODE // 2025.05.26 @ 11:50:22 Player: amhumam Result: Destroyed by H-77 Assassin with Coil Gun Performance ------------- Evolutions (7) 3500 Regions Visited (15) 3000 Robots Destroyed (140) 700 Value Destroyed (5620) 5620 Prototype IDs (20) 400 Alien Tech Used (0) 0 Bonus (3227) 3227 TOTAL SCORE: 16447 Bonus ------- High Alert Combat Kills 287 Follower Combat Kills 1640 Network Hubs Disabled 200 Registered with UFD 300 Met Optimus in HQ 500 Built Enhanced Grunts 300 Cogmind --------- Core Integrity 0/1300 Matter 280/300 Energy 100/100 System Corruption 1% Temperature Cool (0) Movement Rolling (100) Location -3/Research Parts ------- > --- POWER (2) -------- (None) > --- PROPULSION (7) --- Compact Wheel Compact Wheel Compact Wheel Xenon Bombardment Thruster Cooled Impulse Thruster > --- UTILITY (10) ----- Experimental Coolant Injector Advanced Gravity Neutralizer > --- WEAPON (2) ------- Hypervelocity Railgun > --- INVENTORY (5) ---- Particle Reactor Flexi-carbon Leg Authchip [Device] Peak State ------------ > --- POWER ------------ Quantum Reactor > --- PROPULSION ------- Medium Treads Medium Treads Advanced Medium Treads Advanced Medium Treads Centrium Heavy Treads > --- UTILITY ---------- Advanced Heat Sink Advanced Gravity Neutralizer Experimental Signal Interpreter 0b10 Decoder Chip [Looter] Improved Targeting Computer Centrium Medium Armor Plating Medium Regenerative Plating Hacking Suite System Shield Authchip [Weapon] > --- WEAPON ----------- Neutron Cannon Advanced KE Penetrator > --- INVENTORY -------- Neutrino Core Advanced Hacking Suite Authchip [Device] Tesla Rifle Field Laser [Rating: 120] Favorites ----------- Power Ion Engine Engine Ion Engine Power Core Light Nuclear Core Reactor Quantum Reactor Propulsion Flexi-carbon Leg Treads Light Treads Leg Flexi-carbon Leg Wheel Armored Wheel Hover Unit Backup Propulsion III Flight Unit Impulse Thruster Utility Improved Targeting Computer Device Improved Heat Sink Storage High-capacity Storage Unit Processor Improved Targeting Computer Hackware Improved Hacking Suite Protection Hardened Medium Armor Plating Weapon Beam Cannon Energy Gun Gatling Laser Energy Cannon Beam Cannon Ballistic Gun Advanced KE Penetrator Ballistic Cannon Light Cannon Launcher Long-range Missile Launcher Special Weapon Mining Laser Impact Weapon Flail Slashing Weapon Phasing Sabre Piercing Weapon Spear Build | -11 -10 -10 -10 -8 -8 -6 -5 -5 -5 -4 -4 -4 -4 -4 -3 ------- Run | Yrd Mat Min Sub Rec Scr Fac Fac Upp Upp Fac Ext Cet Arc Hub Res Slots Evolved 14 | . . . . . . 8 2 . . 2 . . . . 2 Power 1 | . . . . . . . . . . . . . . . 1 Propulsion 5 | . . . . . . 2 2 . . . . . . . 1 Utility 8 | . . . . . . 6 . . . 2 . . . . . Weapon . | . . . . . . . . . . . . . . . . Parts Attached 174 | 7 4 1 3 3 3 67 23 4 1 6 20 10 3 3 16 Power 15 | 1 . . . . 1 4 3 1 . 1 2 1 . . 1 Engine 4 | 1 . . . . . 2 . . . . . . . . 1 Core 9 | . . . . . 1 2 3 1 . 1 1 . . . . Reactor 2 | . . . . . . . . . . . 1 1 . . . Propulsion 62 | 3 . . 2 2 2 18 10 . 1 2 9 1 2 2 8 Treads 11 | 2 . . . . . 2 . . . . 2 1 2 2 . Leg 23 | 1 . . . . . 11 4 . . . 6 . . . 1 Wheel 14 | . . . 2 2 2 5 . . . . . . . . 3 Hover . | . . . . . . . . . . . . . . . . Flight 14 | . . . . . . . 6 . 1 2 1 . . . 4 Utility 59 | 1 2 . . 1 . 26 8 1 . 3 7 5 1 1 3 Device 29 | . 1 . . . . 13 6 1 . 2 2 1 1 . 2 Storage 4 | 1 1 . . 1 . 1 . . . . . . . . . Processor 6 | . . . . . . 4 . . . . 2 . . . . Hackware 11 | . . . . . . 4 2 . . 1 1 1 . 1 1 Protection 9 | . . . . . . 4 . . . . 2 3 . . . Artifact . | . . . . . . . . . . . . . . . . Weapon 38 | 2 2 1 1 . . 19 2 2 . . 2 3 . . 4 Energy Gun 10 | 1 . . . . . 5 1 . . . 1 1 . . 1 Energy Cannon 8 | . . 1 1 . . 3 1 1 . . . 1 . . . Ballistic Gun 6 | 1 . . . . . 3 . . . . . 1 . . 1 Ballistic Cannon 5 | . 1 . . . . 3 . . . . . . . . 1 Launcher 4 | . . . . . . 3 . . . . . . . . 1 Special Weapon 1 | . 1 . . . . . . . . . . . . . . Impact Weapon 1 | . . . . . . 1 . . . . . . . . . Slashing Weapon 2 | . . . . . . . . 1 . . 1 . . . . Piercing Weapon 1 | . . . . . . 1 . . . . . . . . . Special Melee Weapon . | . . . . . . . . . . . . . . . . Unidentified Prototypes 13 | . . . . . . 2 . . . 2 . 6 . . 3 Corrupted Parts 3 | . . . . . . 1 . . . . . 2 . . . System Corruption 12 | . . . . . . 6 . . . . . 6 . . . Parts Lost 112 | . 1 . 1 . . 34 16 2 . 12 12 6 1 10 17 Power 12 | . . . . . . 4 2 1 . 2 . . . . 3 Propulsion 42 | . . . 1 . . 10 6 1 . 7 4 4 . 5 4 Utility 37 | . . . . . . 12 4 . . 3 5 2 1 4 6 Weapon 21 | . 1 . . . . 8 4 . . . 3 . . 1 4 Highest Loss Streak 19 | . 1 . 1 . . 6 8 2 . 9 9 5 1 10 19 To Critical Strikes 1 | . . . . . . . . . . . . 1 . . . Average Backups 13 | 1 6 10 9 14 23 18 17 4 5 5 4 5 5 5 3 Power 1 | . 1 2 2 2 2 . 1 . . . . 1 1 1 1 Propulsion 1 | . . . . . . 2 5 . . . . . . . . Utility 4 | . . 1 1 3 9 5 4 3 3 2 2 1 2 2 1 Weapon 6 | . 4 7 6 7 10 10 6 1 1 1 1 2 2 2 . Tool/Special . | . . . . . . . . . . . . . . . . Unused Backups 37 | . . . 3 . 8 16 3 . 1 2 . 1 . . 3 Power 4 | . . . . . 2 . 1 . . . . . . . 1 Propulsion 4 | . . . . . . 1 . . . 2 . . . . 1 Utility 11 | . . . . . 2 7 . . 1 . . . . . 1 Weapon 17 | . . . 3 . 4 7 2 . . . . 1 . . . Tool/Special 1 | . . . . . . 1 . . . . . . . . . Average Slot Usage (%) 84 | . 96 100 94 91 85 86 86 93 96 83 64 84 90 88 21 Engine 5 | . 14 14 14 14 11 4 . . . . . . . . . Core 1 | . . . . . 2 1 4 5 5 2 1 . . . . Treads 4 | . 28 28 10 . . . . . . . 3 9 18 23 . Leg 9 | . . . . . . 18 20 . . . 11 10 5 . . Wheel 7 | . . . 12 28 28 2 . . . . . . . . 1 Flight 2 | . . . . . . . 4 33 31 28 2 . . . 4 Device 9 | . 11 14 14 5 . 12 14 13 17 14 5 2 8 5 3 Storage 6 | . 14 14 14 14 14 5 4 . . . . . . . . Processor 7 | . . . . . . 8 11 11 11 10 15 15 15 15 2 Hackware 8 | . . . . . . 11 11 17 17 15 14 13 15 19 3 Protection 2 | . . . . . . 4 . . . . 1 13 10 9 . Energy Gun 1 | . 2 . . . . 3 1 . . . . 5 . . 1 Energy Cannon 5 | . . 14 13 14 14 2 4 2 . . . . 5 4 . Ballistic Gun 1 | . 13 . . . . 1 . . . . . 3 5 4 . Ballistic Cannon 5 | . 11 14 14 14 14 2 2 . . . . . . . . Peak Build Rating 120 | 6 10 10 12 14 17 76 86 88 82 93 87 106 113 120 53 Average Rating 50 | 4 8 10 10 12 14 58 74 83 80 80 61 97 109 109 29 On Entrance 46 | . 6 10 10 12 14 17 71 80 80 82 41 85 104 113 24 Naked Turns . | . . . . . . . . . . . . . . . . Heaviest Build 79 | 14 21 22 22 51 51 79 71 34 21 23 36 57 57 51 15 Greatest Support 212 | 40 40 40 40 28 32 76 101 40 37 37 105 105 152 212 48 Greatest Overweight (x) 7 | 2 . . 1 7 1 6 1 . . 4 1 . . . 1 Average Overweight (x) . | . . . . 3 1 . . . . . . . . . . Largest Inventory Capacity 25 | 8 10 10 10 25 25 25 20 5 5 5 5 5 5 5 5 Average Capacity 14 | 7 9 10 10 18 25 19 18 5 5 5 5 5 5 5 5 Most Carried 25 | 2 10 10 10 25 25 23 20 5 5 5 5 5 5 5 5 Average Carried 14 | 1 7 10 9 15 24 18 17 4 4 4 4 4 5 5 3 Final Capacity 25 | 8 10 10 10 25 25 20 5 5 5 5 5 5 5 5 5 Final Carried 25 | 2 10 10 10 25 25 20 5 5 5 5 5 5 5 5 3 Class Distribution -------------------- 44% | Mutant 27% | Scavenger-Mutant 19% | Hacker-Mutant 7% | Hacker-Sprinter Dominant Class ---------------- Mutant | -10/Materials Mutant | -10/Mines Mutant | -10/Subcaves Mutant | -8/Recycling Mutant | -8/Scraptown Mutant | -6/Factory Scavenger-Mutant | -5/Factory Hacker-Sprinter | -5/Upper Caves Hacker-Sprinter | -5/Upper Caves Hacker-Sprinter | -4/Factory Hacker-Mutant | -4/Extension Scavenger-Mutant | -4/Cetus Scavenger-Mutant | -4/Archives Scavenger-Mutant | -4/Hub_04(d) Mutant | -3/Research Resources | -11 -10 -10 -10 -8 -8 -6 -5 -5 -5 -4 -4 -4 -4 -4 -3 ----------- Run | Yrd Mat Min Sub Rec Scr Fac Fac Upp Upp Fac Ext Cet Arc Hub Res Matter Collected 3875 | 225 151 . 151 30 40 1680 463 204 14 28 361 118 57 85 268 Remotely . | . . . . . . . . . . . . . . . . Salvage Created 5123 | . 221 . 238 267 . 2153 1003 259 113 25 71 151 88 288 246 Parts 233 | . 12 . 19 5 . 86 46 11 11 2 4 7 2 9 19 Haulers Intercepted 5 | . 1 . . . . 3 . . . . . . . 1 . Recyclers Shooed 2 | . . . . 1 . 1 . . . . . . . . . Parts Field Recycled . | . . . . . . . . . . . . . . . . Retrieved Matter . | . . . . . . . . . . . . . . . . Parts Self-Destructed 34 | . . . 19 . . . . 7 8 . . . . . . Prevented 2 | . . . . . . . . 2 . . . . . . . Kills | -11 -10 -10 -10 -8 -8 -6 -5 -5 -5 -4 -4 -4 -4 -4 -3 ------- Run | Yrd Mat Min Sub Rec Scr Fac Fac Upp Upp Fac Ext Cet Arc Hub Res Combat Hostiles Destroyed 114 | . 5 . 8 . . 47 22 8 9 1 1 2 1 1 9 Melee 3 | . . . . . . . . . 1 1 1 . . . . Guns 31 | . 3 . . . . 18 7 . . . . 1 . . 2 Cannons 48 | . 2 . 8 . . 23 13 . . . . . 1 1 . AOE 29 | . . . . . . 5 1 8 8 . . . . . 7 Classes Destroyed 13 | . 2 . 4 1 . 6 . . . . . . . . . Worker 7 | . . . . . . 2 1 . . . . . . 1 3 Builder 4 | . . . . . . 3 . . . . . . . . 1 Hauler 5 | . 1 . . . . 3 . . . . . . . 1 . Recycler 3 | . . . . 2 . 1 . . . . . . . . . Operator 4 | . . . . . . 1 . . . . . . 1 1 1 Turret 2 | . . . 2 . . . . . . . . . . . . Swarmer 50 | . . . 4 . . 13 8 8 9 1 . . . . 7 Cutter 2 | . . . . . . 2 . . . . . . . . . Grunt 31 | . 5 . 1 . . 15 10 . . . . . . . . Sentry 7 | . . . 1 . . 3 2 . . . . . 1 . . Hunter 8 | . . . . . . 6 . . . . 1 . . 1 . Programmer 12 | . . . . . . 8 2 . . . . . . . 2 Cetus Guard 2 | . . . . . . . . . . . . 2 . . . Subdweller 2 | . . . 2 . . . . . . . . . . . . Packrat 2 | . . . . . . . . 2 . . . . . . . Thug 1 | . . . . . . . . . . . . . . 1 . Best Kill Streak 9 | . 2 . 2 2 . 9 5 4 9 1 1 1 1 2 7 Combat Bots Only 9 | . 2 . 2 . . 9 4 4 9 1 1 1 1 1 4 Max Kills in Single Turn 4 | . 1 . 1 1 . 3 2 4 3 1 1 1 1 3 3 Gunslinging . | . . . . . . . . . . . . . . . . Exploded 4 | . . . . . . 3 1 4 3 . . . . . 2 Melee 1 | . . . . . . . . . 1 1 1 . . . . Uniques/NPCs Destroyed . | . . . . . . . . . . . . . . . . Combat | -11 -10 -10 -10 -8 -8 -6 -5 -5 -5 -4 -4 -4 -4 -4 -3 -------- Run | Yrd Mat Min Sub Rec Scr Fac Fac Upp Upp Fac Ext Cet Arc Hub Res Hostile Shots Fired 1377 | . 25 . 65 . . 497 142 9 14 65 89 61 13 174 223 Missed 507 | . 4 . 31 . . 156 47 7 5 37 32 26 3 54 105 Hits 870 | . 21 . 34 . . 341 95 2 9 28 57 35 10 120 118 Melee 9 | . . . . . . 9 . . . . . . . . . Projectile 861 | . 21 . 34 . . 332 95 2 9 28 57 35 10 120 118 AOE 2 | . . . . . . 2 . . . . . . . . . Critical Strikes 42 | . 2 . . . . 17 5 . . 1 3 5 . 5 4 Damage Taken 16189 | . 289 . 330 . . 5032 1780 120 143 648 1420 891 341 2623 2572 Core 3383 | . 75 . 29 . . 598 332 . 29 134 358 54 . 471 1303 Absorbed by Shields 160 | . . . . . . . . . . . 96 64 . . . Ignored by Resistances 209 | . . . . . . 209 . . . . . . . . . Regen/Repaired (Parts) 238 | . . . . . . . . . . . . 24 184 30 . Core Remaining (%) 52 | 100 . . . . 58 29 . . 63 . . . . 11 . Volleys Fired 351 | . 16 . 29 5 . 198 50 3 4 . 8 12 8 2 16 Largest 2 | . 2 . 2 1 . 2 2 2 1 . 1 2 2 2 2 Hottest 183 | . 100 . 100 60 . 140 183 124 43 . 81 128 125 125 119 Shots Fired 634 | . 30 . 53 5 . 379 89 5 4 . 8 24 16 3 18 Gun 257 | . 20 . . . . 164 32 . . . . 24 8 1 8 Cannon 353 | . 9 . 52 5 . 209 57 1 . . 6 . 8 2 4 Launcher 22 | . . . . . . 6 . 4 4 . 2 . . . 6 Special 2 | . 1 . 1 . . . . . . . . . . . . Kinetic 253 | . 24 . 24 . . 170 15 . . . . 7 8 1 4 Thermal 305 | . 1 . 29 5 . 169 74 . . . . 12 8 2 5 Explosive 22 | . . . . . . 6 . 4 4 . 2 . . . 6 Electromagnetic 54 | . 5 . . . . 34 . 1 . . 6 5 . . 3 Robot Hit Streak 17 | . 15 . 8 4 . 17 16 2 3 . 4 9 11 1 5 Robot Miss Streak 8 | . 1 . 3 1 . 8 7 2 1 . 1 2 3 . 2 Penetration Max 1 | . . . . . . . . . . . . 1 1 . . Secondary Targets 3 | . . . . . . 1 2 . . . . . . . . Max Gunslinging Chain 1 | . . . . . . 1 1 . . . . . . . . Shots Hit Robots 433 | . 22 . 28 4 . 268 57 3 4 1 8 19 9 1 9 Core Hits 333 | . 10 . 14 3 . 181 56 8 11 1 4 11 3 10 21 Critical Kills 3 | . . . . . . 2 1 . . . . . . . . Critical Parts Destroyed 1 | . 1 . . . . . . . . . . . . . . Critical Strikes 10 | . 1 . . . . 6 2 . . . 1 . . . . Burn 3 | . . . . . . 2 1 . . . . . . . . Meltdown 3 | . . . . . . 2 1 . . . . . . . . Destroy 1 | . 1 . . . . . . . . . . . . . . Blast 2 | . . . . . . 2 . . . . . . . . . Sever 1 | . . . . . . . . . . . 1 . . . . Melee Attacks 37 | . . . . . . 11 5 . 1 8 12 . . . . Impact 7 | . . . . . . 7 . . . . . . . . . Slashing 21 | . . . . . . . . . 1 8 12 . . . . Piercing 9 | . . . . . . 4 5 . . . . . . . . Sneak Attacks 1 | . . . . . . . . . . 1 . . . . . Combat Hostiles . | . . . . . . . . . . . . . . . . Follow-up Attacks . | . . . . . . . . . . . . . . . . Damage Inflicted 14739 | . 301 . 474 69 . 6335 2138 694 726 105 495 547 357 676 1822 Guns 3562 | . 232 . . . . 2150 408 . . . . 547 99 . 126 Cannons 5818 | . 69 . 474 69 . 3233 1412 30 . . 105 . 258 38 130 Explosions 5073 | . . . . . . 952 318 664 691 . 258 . . 624 1566 Melee 272 | . . . . . . . . . 35 105 132 . . . . Ramming 14 | . . . . . . . . . . . . . . 14 . Kinetic 4010 | . 248 . 225 . . 2661 397 . . . . 250 99 . 130 Thermal 5493 | . . . 249 69 . 2868 1741 . . . . 187 258 38 83 Explosive 3617 | . . . . . . 438 . 664 691 . 258 . . . 1566 Electromagnetic 1333 | . 53 . . . . 368 . 30 . . 105 110 . 624 43 Impact . | . . . . . . . . . . . . . . . . Slashing 272 | . . . . . . . . . 35 105 132 . . . . Piercing . | . . . . . . . . . . . . . . . . Highest Corruption 20 | . . . . . . 12 3 3 3 2 2 5 4 20 1 Average Corruption 6 | . . . . . . 9 2 3 3 1 1 3 4 7 1 Corruption Purged 4 | . . . . . . . . . . . 2 2 . . . Corruption Blocked . | . . . . . . . . . . . . . . . . Effects 164 | . . . . . . 129 5 4 . . 5 5 8 6 2 Message Errors 38 | . . . . . . 30 . 2 . . 3 1 1 . 1 Matter Fused 31 | . . . . . . 24 1 . . . . 1 3 2 . Heat Flow Errors 19 | . . . . . . 14 2 . . . . 1 1 1 . Energy Discharges 23 | . . . . . . 18 1 1 . . . 1 2 . . Parts Rejected 3 | . . . . . . . 1 . . . . . 1 1 . Parts Fused 1 | . . . . . . . . . . . . 1 . . . Data Loss (minor) 24 | . . . . . . 21 . . . . 2 . . 1 . Data Loss (major) 7 | . . . . . . 7 . . . . . . . . . Misfires 5 | . . . . . . 4 . 1 . . . . . . . Alerts 2 | . . . . . . . . . . . . . . 1 1 Weapon Failures 11 | . . . . . . 11 . . . . . . . . . Overload Shots . | . . . . . . . . . . . . . . . . Overflow Damage 381 | . . . . . . 81 36 95 63 . 34 . 25 . 47 Projectiles 98 | . . . . . . 58 . . . . 15 . 25 . . Explosions 283 | . . . . . . 23 36 95 63 . 19 . . . 47 Melee . | . . . . . . . . . . . . . . . . Knockbacks 49 | . . . 8 . . 35 3 . . . . . . . 3 Impact . | . . . . . . . . . . . . . . . . Kinetic 48 | . . . 8 . . 34 3 . . . . . . . 3 Secondary 1 | . . . . . . 1 . . . . . . . . . Self-Inflicted Damage 208 | . . . . . . 6 . 93 . . . . . 109 . Shots 4 | . . . . . . 1 . 2 . . . . . 1 . Rammed 5 | . . . . . . . . . . . . . . 5 . Targets Rammed 5 | . . . . . . . . . . . . . . 5 . Kicked . | . . . . . . . . . . . . . . . . Crushed . | . . . . . . . . . . . . . . . . Highest Temperature 525 | . 54 . . 60 . 525 507 92 8 205 37 156 344 235 120 Average Temperature 92 | . 32 . . 30 . 91 135 41 4 76 18 53 163 120 60 Received Heat Transfer 2293 | . 189 . 144 . . 1008 354 20 . 45 192 107 54 57 123 Effects 10 | . . . . . . 4 6 . . . . . . . . Shutdowns 3 | . . . . . . 1 2 . . . . . . . . Matter Decay 2 | . . . . . . 2 . . . . . . . . . Short Circuit 2 | . . . . . . 1 1 . . . . . . . . Damage (major) 3 | . . . . . . . 3 . . . . . . . . Siege Activations . | . . . . . . . . . . . . . . . . Martial Activations . | . . . . . . . . . . . . . . . . Shielding Activations . | . . . . . . . . . . . . . . . . Robots Disrupted 1 | . . . . . . 1 . . . . . . . . . Combat Hostiles . | . . . . . . . . . . . . . . . . Robots Corrupted 2 | . . . . . . . . . . . . 1 . 1 . Combat Hostiles 1 | . . . . . . . . . . . . 1 . . . Parts Fried 5 | . . . . . . 5 . . . . . . . . . Impact Corruptions . | . . . . . . . . . . . . . . . . Robots Melted 4 | . . . . . . 3 1 . . . . . . . . Combat Hostiles 2 | . . . . . . 1 1 . . . . . . . . Parts Melted 15 | . . . . . . 12 2 . . . . 1 . . . Heat Transferred 9016 | . . . 518 148 . 5479 2353 . . . . 407 . . 111 Parts Sabotaged . | . . . . . . . . . . . . . . . . Parts Stolen . | . . . . . . . . . . . . . . . . Parts Stripped . | . . . . . . . . . . . . . . . . Power Chain Reactions 1 | . . . . . . 1 . . . . . . . . . Alert | -11 -10 -10 -10 -8 -8 -6 -5 -5 -5 -4 -4 -4 -4 -4 -3 ------- Run | Yrd Mat Min Sub Rec Scr Fac Fac Upp Upp Fac Ext Cet Arc Hub Res Maximum Alert Level 3 | . . . . . . 3 1 . . 1 2 1 1 2 3 Low Security (%) 57 | 100 100 100 . 100 . 48 14 . . 70 56 80 97 47 19 Level 1 25 | . . . . . . 22 85 . . 29 38 19 2 . 28 Level 2 10 | . . . . . . 17 . . . . 4 . . 52 39 Level 3 5 | . . . . . . 12 . . . . . . . . 12 Level 4 . | . . . . . . . . . . . . . . . . Level 5 . | . . . . . . . . . . . . . . . . High Security . | . . . . . . . . . . . . . . . . Max Security . | . . . . . . . . . . . . . . . . Peak Influence 746 | . 76 5 . 51 . 746 361 . . 239 408 223 206 584 746 Initial 361 | . . . . 21 . . 361 . . 203 . 183 66 12 248 Average 211 | . 23 . . 8 . 297 250 . . 134 161 163 116 303 415 Influence Increases 6481 | . 144 5 235 179 . 1717 674 180 200 279 746 322 190 782 828 Destroy 0b10 Robot/C 2900 | . 100 . 160 . . 940 440 160 180 20 360 160 80 120 180 Destroy 0b10 Robot/NC 130 | . 5 . . 15 . 50 5 . . . 5 5 5 15 25 Destroy Leader 492 | . 12 . . . . 256 60 20 20 . 52 . . 32 40 Allied During Kill 421 | . . . . . . . . . . . 149 131 84 57 . Successful Hack 146 | . 10 5 . 14 . 17 10 . . 24 38 . . 2 26 Select Force Hacks 150 | . . . . 150 . . . . . . . . . . . Disable Machine 510 | . 15 . . . . 150 75 . . 30 . . 15 195 30 Destroy Structure 547 | . 2 . . . . 79 54 . . 10 52 26 6 226 92 Partial Spotted 150 | . . . . . . . 15 . . 15 15 . . . 105 Lose Combat Pursuer 1035 | . . . 75 . . 225 15 . . 180 75 . . 135 330 Influence Decreases 5735 | . 143 6 189 225 . 979 1115 311 42 603 418 483 321 344 556 Entered New Map 1163 | . . 1 . 25 . . 377 111 32 121 . 145 101 24 226 Time Decay 2791 | . 133 5 179 200 . 549 428 180 10 146 293 198 190 120 160 Lost Part 948 | . 10 . 10 . . 280 160 20 . 97 31 60 10 100 170 Lost Ally 304 | . . . . . . . . . . 10 94 80 20 100 . Purge Threat 529 | . . . . . . 150 150 . . 229 . . . . . Squads Dispatched 50 | . 1 . . . . 22 6 . . 8 4 . . 5 4 Investigation 17 | . . . . . . 7 3 . . 3 2 . . . 2 Extermination 11 | . . . . . . 7 2 . . 2 . . . . . Reinforcement 18 | . 1 . . . . 5 . . . 3 2 . . 5 2 Assault . | . . . . . . . . . . . . . . . . Garrison 4 | . . . . . . 3 1 . . . . . . . . Intercept . | . . . . . . . . . . . . . . . . Searches Triggered . | . . . . . . . . . . . . . . . . Construction Impeded 3 | . . . . . . 2 . . . . . . . 1 . Haulers Reinforced . | . . . . . . . . . . . . . . . . Active Scanning Responses . | . . . . . . . . . . . . . . . . Cargo Convoy Interrupts . | . . . . . . . . . . . . . . . . Stealth | -11 -10 -10 -10 -8 -8 -6 -5 -5 -5 -4 -4 -4 -4 -4 -3 --------- Run | Yrd Mat Min Sub Rec Scr Fac Fac Upp Upp Fac Ext Cet Arc Hub Res Distress Signals 25 | . 1 . . . . 4 5 . . 1 2 2 1 4 5 Communications Jammed . | . . . . . . . . . . . . . . . . Distress Signals . | . . . . . . . . . . . . . . . . Times Spotted 323 | . 12 2 12 . . 82 45 10 9 28 28 10 6 32 47 Peak Tracking Total 21 | . 5 2 3 . . 5 17 4 6 9 8 5 3 21 15 Tactical Retreats 33 | . . . 4 . . 8 1 1 . 6 1 . . 4 8 Traps | -11 -10 -10 -10 -8 -8 -6 -5 -5 -5 -4 -4 -4 -4 -4 -3 ------- Run | Yrd Mat Min Sub Rec Scr Fac Fac Upp Upp Fac Ext Cet Arc Hub Res Traps Triggered 12 | . 1 . . . . 4 1 . . . 2 . . 1 3 Indirectly . | . . . . . . . . . . . . . . . . Trap Hack Attempts . | . . . . . . . . . . . . . . . . Triggered . | . . . . . . . . . . . . . . . . Disarmed . | . . . . . . . . . . . . . . . . Reprogrammed . | . . . . . . . . . . . . . . . . Reused . | . . . . . . . . . . . . . . . . Traps Extracted . | . . . . . . . . . . . . . . . . Installed . | . . . . . . . . . . . . . . . . Triggered . | . . . . . . . . . . . . . . . . Machines | -11 -10 -10 -10 -8 -8 -6 -5 -5 -5 -4 -4 -4 -4 -4 -3 ---------- Run | Yrd Mat Min Sub Rec Scr Fac Fac Upp Upp Fac Ext Cet Arc Hub Res Machines Disabled 35 | . 1 . 1 . . 10 5 . . 2 . . 1 13 2 Max in Single Turn 12 | . 1 . 1 . . 4 1 . . 1 . . 1 12 1 Garrison Access 4 | . . . . . . 1 1 . . . . . . 1 1 Network Hub 1 | . . . . . . . . . . . . . . 1 . Machines Repaired . | . . . . . . . . . . . . . . . . Machines Dismantled . | . . . . . . . . . . . . . . . . Machines Sabotaged . | . . . . . . . . . . . . . . . . Overloaded Fab Kills . | . . . . . . . . . . . . . . . . Hacking | -11 -10 -10 -10 -8 -8 -6 -5 -5 -5 -4 -4 -4 -4 -4 -3 --------- Run | Yrd Mat Min Sub Rec Scr Fac Fac Upp Upp Fac Ext Cet Arc Hub Res Machines Accessed 75 | . 3 1 1 8 1 20 8 1 . 6 13 . . 2 11 Terminals 43 | . 3 1 . 3 . 9 3 . . 4 13 . . 1 6 Fabricators 4 | . . . . . . 2 1 . . . . . . . 1 Repair Stations 1 | . . . . . . . . . . . . . . . 1 Recycling Units 19 | . . . . 5 . 7 3 . . 2 . . . . 2 Scanalyzers 1 | . . . . . . 1 . . . . . . . . . Garrison Access 4 | . . . . . . 1 1 . . . . . . 1 1 Total Hacks 180 | . 6 4 4 13 5 52 21 1 . 23 29 . . 3 19 Successful 91 | . 5 3 4 8 5 21 12 1 . 12 11 . . 2 7 Failed 88 | . 1 . . 5 . 31 9 . . 11 18 . . 1 12 Catastrophic 12 | . . . . . . 2 1 . . 2 2 . . . 5 Database Lockouts 1 | . . 1 . . . . . . . . . . . . . Manual 116 | . 4 6 . 12 . 37 13 . . 23 6 1 . 2 12 Terminals 124 | . 6 4 . 8 . 32 12 . . 21 29 . . 2 10 Fabricators 10 | . . . . . . 4 4 . . . . . . . 2 Repair Stations 2 | . . . . . . . . . . . . . . . 2 Recycling Units 27 | . . . . 5 . 13 3 . . 2 . . . . 4 Scanalyzers 2 | . . . . . . 2 . . . . . . . . . Garrison Access 5 | . . . . . . 1 2 . . . . . . 1 1 Terminal Hacks 41 | . 3 3 4 1 5 6 2 1 . 6 9 . . . 1 Record 11 | . . 1 4 . 5 . . . . . . . . . 1 Part Schematic 4 | . . . . . . 2 . . . 2 . . . . . Robot Analysis 4 | . 1 1 . 1 . 1 . . . . . . . . . Open Door 10 | . . . . . . . . 1 . . 9 . . . . Branch Access Points 1 | . . . . . . . . . . 1 . . . . . Terminal Index 2 | . 1 . . . . 1 . . . . . . . . . Alert Level 1 | . . . . . . . 1 . . . . . . . . Unreport Threat 4 | . . . . . . 1 1 . . 2 . . . . . Transport Status 1 | . 1 . . . . . . . . . . . . . . Recall Investigation 1 | . . . . . . 1 . . . . . . . . . Registered Components 1 | . . . . . . . . . . 1 . . . . . Zone Layout 1 | . . 1 . . . . . . . . . . . . . Fabricator Hacks 8 | . . . . . . 3 3 . . . . . . . 2 Network Status 2 | . . . . . . 1 1 . . . . . . . . Load Schematic 3 | . . . . . . 1 1 . . . . . . . 1 Build 3 | . . . . . . 1 1 . . . . . . . 1 Repair Station Hacks 1 | . . . . . . . . . . . . . . . 1 Refit 1 | . . . . . . . . . . . . . . . 1 Recycling Unit Hacks . | . . . . . . . . . . . . . . . . Scanalyzer . | . . . . . . . . . . . . . . . . Garrison Access Hacks 4 | . . . . . . 1 1 . . . . . . 1 1 Seal Access 4 | . . . . . . 1 1 . . . . . . 1 1 Unauthorized Hacks 37 | . 2 . . 7 . 11 6 . . 6 2 . . 1 2 Terminals 20 | . 2 . . 2 . 5 3 . . 4 2 . . 1 1 Assimilate 1 | . . . . . . . . . . 1 . . . . . Botnet 19 | . 2 . . 2 . 5 3 . . 3 2 . . 1 1 Fabricators . | . . . . . . . . . . . . . . . . Repair Stations . | . . . . . . . . . . . . . . . . Recycling Units 17 | . . . . 5 . 6 3 . . 2 . . . . 1 Tunnel 5 | . . . . 5 . . . . . . . . . . . Fedlink 12 | . . . . . . 6 3 . . 2 . . . . 1 Scanalyzers . | . . . . . . . . . . . . . . . . Garrison Access . | . . . . . . . . . . . . . . . . Data Cores Recovered 1 | . . . . . . 1 . . . . . . . . . Used . | . . . . . . . . . . . . . . . . Hacking Detections 41 | . 3 1 . 2 . 14 5 . . 3 5 1 . 1 6 Full Trace Events 4 | . . . . . . . . . . 1 2 . . . 1 Feedback Events . | . . . . . . . . . . . . . . . . Feedback Blocked . | . . . . . . . . . . . . . . . . Robot Schematics Acquired . | . . . . . . . . . . . . . . . . Robots Built . | . . . . . . . . . . . . . . . . Authchips . | . . . . . . . . . . . . . . . . Time . | . . . . . . . . . . . . . . . . Total Robot Build Rating . | . . . . . . . . . . . . . . . . Part Schematics Acquired 4 | . . . . . . 2 . . . 2 . . . . . Parts Built 5 | . . . . . . 1 2 . . . . . . . 2 Authchips 3 | . . . . . . 1 1 . . . . . . . 1 Time 98 | . . . . . . 47 31 . . . . . . . 20 Total Part Build Rating 13 | . . . . . . 5 4 . . . . . . . 4 Parts Repaired . | . . . . . . . . . . . . . . . . Time . | . . . . . . . . . . . . . . . . Parts Recycled . | . . . . . . . . . . . . . . . . Recycled Matter . | . . . . . . . . . . . . . . . . Retrieved Matter . | . . . . . . . . . . . . . . . . Retrieved Components . | . . . . . . . . . . . . . . . . Parts Scanalyzed . | . . . . . . . . . . . . . . . . Part Schematics Acquired . | . . . . . . . . . . . . . . . . Parts Damaged . | . . . . . . . . . . . . . . . . Bothacking | -11 -10 -10 -10 -8 -8 -6 -5 -5 -5 -4 -4 -4 -4 -4 -3 ------------ Run | Yrd Mat Min Sub Rec Scr Fac Fac Upp Upp Fac Ext Cet Arc Hub Res Used RIF Installer . | . . . . . . . . . . . . . . . . Robots Hacked . | . . . . . . . . . . . . . . . . Non-combat . | . . . . . . . . . . . . . . . . Combat . | . . . . . . . . . . . . . . . . Robot Hacks Applied . | . . . . . . . . . . . . . . . . Relay Couplers Released . | . . . . . . . . . . . . . . . . Fabnet Peak Effective % . | . . . . . . . . . . . . . . . . Robots Rewired 3 | . . . . . . . . . . . 3 . . . . Allies Hacked . | . . . . . . . . . . . . . . . . Hacks Repelled . | . . . . . . . . . . . . . . . . Allies | -11 -10 -10 -10 -8 -8 -6 -5 -5 -5 -4 -4 -4 -4 -4 -3 -------- Run | Yrd Mat Min Sub Rec Scr Fac Fac Upp Upp Fac Ext Cet Arc Hub Res Total Allies 22 | . . 3 . . . . . . . 1 13 5 . . . Largest Group 10 | . . 3 . . . . . . . . 6 10 7 6 . Highest-Rated Group 784 | . . 40 . . . . . . . . 361 784 483 445 . Highest-Rated Ally 159 | . . 16 . . . . . . . . 159 159 96 96 . Total Orders . | . . . . . . . . . . . . . . . . Ally Attacks 203 | . . 3 . . . . . . . . 96 49 32 23 . Total Damage 6948 | . . 47 . . . . . . . . 2714 2118 1153 916 . Kills 33 | . . . . . . . . . . . 18 7 3 5 . Allies Corrupted . | . . . . . . . . . . . . . . . . Allies Melted . | . . . . . . . . . . . . . . . . Intel | -11 -10 -10 -10 -8 -8 -6 -5 -5 -5 -4 -4 -4 -4 -4 -3 ------- Run | Yrd Mat Min Sub Rec Scr Fac Fac Upp Upp Fac Ext Cet Arc Hub Res Active Infowar (turns) 4293 | . . . . . . 992 912 376 26 162 767 402 389 245 22 Sensors 2519 | . . . . . . 881 912 376 26 162 162 . . . . Traps 111 | . . . . . . 111 . . . . . . . . . Decoding 1758 | . . . . . . . . . . . 700 402 389 245 22 Robot Analysis Total 4 | . 1 1 . 1 . 1 . . . . . . . . . Derelict Logs Recovered 6 | . . . 1 . 3 . . 2 . . . . . . . Drone Launches . | . . . . . . . . . . . . . . . . Drone Recoveries . | . . . . . . . . . . . . . . . . Decoded 0b10 Intel 42 | . . . . . . . . . . . 23 . . 18 1 Items 42 | . . . . . . . . . . . 23 . . 18 1 Exploration | -11 -10 -10 -10 -8 -8 -6 -5 -5 -5 -4 -4 -4 -4 -4 -3 ------------- Run | Yrd Mat Min Sub Rec Scr Fac Fac Upp Upp Fac Ext Cet Arc Hub Res Turns Passed 11011 | 81 434 108 719 999 1155 3600 1050 376 26 325 767 402 389 245 335 Spaces Moved 8413 | 46 228 67 405 529 959 1936 833 961 39 759 648 133 92 172 606 Core 275 | 6 . . . 100 . . . . . 2 46 . . 39 82 Treads 847 | 39 228 67 155 . . 16 . . . . 20 97 92 133 . Legs 2376 | 1 . . . . . 1601 466 . . . 272 36 . . . Wheels 1992 | . . . 250 429 959 319 . . . . . . . . 35 Hover 13 | . . . . . . . . . . . . . . . 13 Flight 2910 | . . . . . . . 367 961 39 757 310 . . . 476 Fastest Speed 23 | 50 160 160 110 110 105 105 25 25 24 23 35 120 160 50 30 Average Speed 101 | 151 160 160 152 181 108 139 100 28 26 28 79 149 160 130 42 Slowest Speed 400 | 160 160 160 240 400 115 320 190 31 31 250 240 160 160 160 160 Overloaded Moves 81 | . . . . . . . . . . 37 17 . . . 27 Propulsion Burnouts . | . . . . . . . . . . . . . . . . Robots Hopped 24 | . . . . . . . 1 . . 7 5 . . . 11 Potential Cave-ins . | . . . . . . . . . . . . . . . . Cave-ins Triggered . | . . . . . . . . . . . . . . . . Exploration Rate (%) 44 | 6 46 18 26 63 79 56 26 92 8 25 70 55 73 34 33 Regions Visited 15 Branch Regions 10 Pre-discovered Areas 6 | . . . . 5 . 1 . . . . . . . . . Known Exits Taken 9 | . . . . . . 1 1 1 1 1 1 1 1 1 . Unknown Exits Taken 6 | 1 1 1 1 1 1 . . . . . . . . . . Scrap Searched 9 | . . . 3 . 3 . . 3 . . . . . . . Spaces Dug 17 | . 1 . . . . 6 3 . . 5 2 . . . . Terrain Destroyed 507 | . 1 . . . . 81 29 75 72 5 26 . 2 165 51 Melee 16 | . . . . . . 6 3 . . 5 2 . . . . Projectile 22 | . 1 . . . . 7 11 . . . . . 2 . 1 AOE 469 | . . . . . . 68 15 75 72 . 24 . . 165 50 Terrain Rammed . | . . . . . . . . . . . . . . . . Walls Destroyed . | . . . . . . . . . . . . . . . . Machines Disabled . | . . . . . . . . . . . . . . . . Actions | -11 -10 -10 -10 -8 -8 -6 -5 -5 -5 -4 -4 -4 -4 -4 -3 --------- Run | Yrd Mat Min Sub Rec Scr Fac Fac Upp Upp Fac Ext Cet Arc Hub Res Total 10131 | 55 264 67 451 563 1081 2428 952 1057 48 845 857 310 314 187 652 Wait 877 | . 9 . 4 3 91 93 23 83 . 73 130 149 211 2 6 Move 8352 | 45 227 66 404 528 958 1935 830 960 38 745 637 132 91 171 585 Hop 22 | . . . . . . . 1 . . 6 5 . . . 10 Pick Up 123 | 2 8 . 4 20 12 54 2 2 2 1 6 3 . . 7 Fast Attach 118 | 7 1 . 2 2 3 42 13 3 1 5 16 6 4 2 11 Attach 62 | . 1 . . 1 . 23 13 1 . 2 7 1 . . 13 Detach 12 | . . . . 1 . 4 . . . 2 1 . . . 4 Swap 38 | . 2 1 2 . 1 21 3 3 . . 1 3 . 1 . Drop 89 | 1 . . 6 3 16 36 12 2 2 3 . 4 . 4 . Fire 351 | . 16 . 29 5 . 198 50 3 4 . 8 12 8 2 16 Melee 37 | . . . . . . 11 5 . 1 8 12 . . . . Ram 3 | . . . . . . . . . . . . . . 3 . Kick . | . . . . . . . . . . . . . . . . Crush 2 | . . . . . . . . . . . . . . 2 . Escape Stasis 3 | . . . . . . . . . . . 3 . . . . Rewire 42 | . . . . . . 11 . . . . 31 . . . . Trap . | . . . . . . . . . . . . . . . . Miscellaneous . | . . . . . . . . . . . . . . . . Route ------- -11/Scrapyard -10/Materials -10/Mines (discovered 2 exits: [*Mat] / *Sub) -10/Subcaves -8/Recycling -8/Scraptown -6/Factory (discovered 2 exits: *Fac x2) -5/Factory -5/Upper Caves -5/Upper Caves -4/Factory (discovered 5 exits: *Res / *Upp x2 / *Ext x2) -4/Extension (discovered 2 exits: *Res / *Cet) -4/Cetus -4/Archives (discovered 3 exits: *Res / *Hub x2) -4/Hub_04(d) -3/Research (discovered 3 exits: *Res x2 / Qua) History --------- Turn | Location | Event 12 | -11/Scrapyard | Discovered new exit (range 14) 82 | -11/Scrapyard | Entered Materials 289 | -10/Materials | Discovered new exit (range 14) 314 | -10/Materials | Build established: Mutant 516 | -10/Materials | Entered Mines 526 | -10/Mines | Discovered new exit (range 15) 526 | -10/Mines | Central database locked down 553 | -10/Mines | Assisted by bots powering up and referring to "LRC-V3" 605 | -10/Mines | Assembled infested the area 620 | -10/Mines | Discovered new exit (range 4) 624 | -10/Mines | Entered Subcaves 642 | -10/Subcaves | Lost 3 allies 765 | -10/Subcaves | Disturbed a concealed Subdweller 841 | -10/Subcaves | Visited Clippyterm 848 | -10/Subcaves | Learned Factory garrison access intel 1089 | -10/Subcaves | Learned 2 Materials zone layouts 1264 | -10/Subcaves | Discovered new exit (range 10) 1339 | -10/Subcaves | Build established: Scavenger-Mutant 1343 | -10/Subcaves | Entered Recycling 2071 | -8/Recycling | Build established: Mutant 2139 | -8/Recycling | Scanned before Scraplab entrance 2332 | -8/Recycling | Entered Scraplab 2341 | -8/Recycling | Discovered new exit (range 2) 2342 | -8/Recycling | Entered Scraptown 2484 | -8/Scraptown | Scanned Subdweller tech in exchange for log data 2489 | -8/Scraptown | Learned 8 Research zone layouts 2490 | -8/Scraptown | Learned location of 2 exits from Research 2491 | -8/Scraptown | Learned Factory stockpile data 2805 | -8/Scraptown | Visited Comm Corps 2855 | -8/Scraptown | Visited The Evicted 2870 | -8/Scraptown | Visited Fellowship of the Rings 2905 | -8/Scraptown | Visited UFD Registry 2905 | -8/Scraptown | Registered with UFD as "Databoard" 2928 | -8/Scraptown | Visited Scrapoid Research Area 2946 | -8/Scraptown | Visited Infowarlord's Domain 2965 | -8/Scraptown | Visited LU-1G1's Boring Crew 3028 | -8/Scraptown | Visited Curators Association 3061 | -8/Scraptown | Visited DA-N13 Charitable Foundation 3066 | -8/Scraptown | Found DCF Scrap (30 items) 3108 | -8/Scraptown | Visited Abandonware Association 3119 | -8/Scraptown | Learned abandonware demo "REPAIR.EXE" 3119 | -8/Scraptown | Learned abandonware demo "KABOOM.EXE" 3137 | -8/Scraptown | Visited Scrap Suit Storage 3188 | -8/Scraptown | Visited Junk Repository 3252 | -8/Scraptown | Found Exp. Signal Interpreter 3445 | -8/Scraptown | Met Optimus 3445 | -8/Scraptown | Accepted into 0bPrime 3495 | -8/Scraptown | Discovered new exit (range 3) 3497 | -8/Scraptown | Entered Factory 3497 | -6/Factory | Evolved 8 slots: Propulsion x2, Utility x6 3499 | -6/Factory | Loaded intel: 4 garrison access locations 3741 | -6/Factory | Lost 6 parts (1p3n2u) 3792 | -6/Factory | Lost 4 parts (2u2w) 4150 | -6/Factory | Build established: Scavenger-Mutant 4184 | -6/Factory | Loaded intel: 8 recycling unit locations 4392 | -6/Factory | Lost 3 parts (1p1n1w) 4511 | -6/Factory | Garrison activated, responded to threat 4574 | -6/Factory | Lost 3 parts (2u1w) 4613 | -6/Factory | Garrison activated, responded to threat 4671 | -6/Factory | Lost 3 parts (1p1n1u) 4692 | -6/Factory | Discovered new exit (range 16) 4839 | -6/Factory | Identified exit to Factory 4969 | -6/Factory | Build established: Mutant 5064 | -6/Factory | Learned location of Protoforge (-3) 5261 | -6/Factory | Found Unknown Device 5261 | -6/Factory | Identified Launcher Loader 5299 | -6/Factory | System corruption reached 10% 6078 | -6/Factory | Build established: Hacker-Mutant 6327 | -6/Factory | Fabricated Imp. Hacking Suite (x1) 6573 | -6/Factory | Core integrity fell below 50% 6632 | -6/Factory | Destroyed 9 combat bots 6640 | -6/Factory | Lost 4 parts (1p2u1w) 7013 | -6/Factory | Discovered exit to Factory (range 9) 7097 | -6/Factory | Entered another Factory area 7097 | -5/Factory | Evolved 2 slots: Propulsion x2 7473 | -5/Factory | Loaded intel: 8 recycling unit locations 7726 | -5/Factory | Garrison activated, responded to threat 7781 | -5/Factory | Lost 3 parts (1p1u1w) 7794 | -5/Factory | Build established: Scavenger-Mutant 7828 | -5/Factory | Fabricated Plasma Cutter (x2) 7888 | -5/Factory | Lost 4 parts (1p2n1u) 8021 | -5/Factory | Lost 8 parts (4n2u2w) 8071 | -5/Factory | Discovered new exit (range 7) 8073 | -5/Factory | Identified exit to Upper Caves 8101 | -5/Factory | Spotted B-75 Beast 8147 | -5/Factory | Entered Upper Caves 8275 | -5/Upper Caves | Learned Factory terminal intel 8289 | -5/Upper Caves | Build established: Hacker-Sprinter 8365 | -5/Upper Caves | Learned location of 1 exit from Factory 8479 | -5/Upper Caves | Ambushed by wild Derelicts 8520 | -5/Upper Caves | Discovered new exit (range 10) 8523 | -5/Upper Caves | Identified exit to Upper Caves 8523 | -5/Upper Caves | Entered another Upper Caves area 8547 | -5/Upper Caves | Discovered new exit (range 10) 8549 | -5/Upper Caves | Identified exit to Factory 8549 | -5/Upper Caves | Entered Factory 8549 | -4/Factory | Evolved 2 slots: Utility x2 8550 | -4/Factory | Identified exit to Upper Caves 8551 | -4/Factory | Loaded intel: 27 terminal locations 8557 | -4/Factory | Destroyed 9 combat bots 8633 | -4/Factory | Loaded intel: 8 recycling unit locations 8639 | -4/Factory | Lost 3 parts (1p1n1u) 8759 | -4/Factory | Identified exit to Extension 8790 | -4/Factory | Discovered new exit (range 13) 8864 | -4/Factory | Spotted B-86 Titan 8874 | -4/Factory | Entered Extension 8886 | -4/Extension | Rescued a captive Derelict 8888 | -4/Extension | Rescued a captive Derelict 8888 | -4/Extension | Rescued a captive Derelict 8902 | -4/Extension | Lost 9 parts (1p6n2u) 8902 | -4/Extension | Rescued a captive Derelict 8911 | -4/Extension | Rescued a captive Derelict 8918 | -4/Extension | Rescued a captive Derelict 8920 | -4/Extension | Rescued a captive Derelict 8983 | -4/Extension | Lost 4 allies 9011 | -4/Extension | Rescued a captive Derelict 9014 | -4/Extension | Rescued a captive Derelict 9134 | -4/Extension | Build established: Hacker-Mutant 9150 | -4/Extension | Spotted B-86 Titan 9157 | -4/Extension | Spotted B-86 Titan 9183 | -4/Extension | Rescued A7 9200 | -4/Extension | Lost 9 parts (2n5u2w) 9206 | -4/Extension | Lost 3 allies 9231 | -4/Extension | Rescued a captive Derelict 9232 | -4/Extension | Rescued a captive Derelict 9235 | -4/Extension | Rescued a captive Derelict 9461 | -4/Extension | Discovered new exit (range 10) 9462 | -4/Extension | Discovered new exit (range 6) 9479 | -4/Extension | Identified exit to Cetus 9488 | -4/Extension | Identified exit to Research 9641 | -4/Extension | Entered Cetus 9641 | -4/Cetus | Accompanied by 6 allies (A7) 9646 | -4/Cetus | Acquired a Cetus Manufacturing Module code from A7 9657 | -4/Cetus | Spotted Cetus Guard 9657 | -4/Cetus | Spotted Cetus Guard 9660 | -4/Cetus | Spotted Cetus Guard 9660 | -4/Cetus | Spotted Cetus Guard 9679 | -4/Cetus | Allies destroyed Cetus Guard 9682 | -4/Cetus | Allies destroyed Cetus Guard 9690 | -4/Cetus | Destroyed Cetus Guard 9691 | -4/Cetus | Allies destroyed Cetus Guard 9721 | -4/Cetus | Lost 5 parts (3n2u) 9743 | -4/Cetus | Build established: Scavenger-Mutant 9766 | -4/Cetus | Started Cetus Manufacturing Module 9791 | -4/Cetus | Manufactured an Enhanced Grunt 9816 | -4/Cetus | Manufactured an Enhanced Grunt 9841 | -4/Cetus | Manufactured an Enhanced Grunt 9866 | -4/Cetus | Manufactured an Enhanced Grunt 9891 | -4/Cetus | Manufactured an Enhanced Grunt 9921 | -4/Cetus | Discovered new exit (range 15) 9948 | -4/Cetus | Spotted Cetus Guard 9948 | -4/Cetus | Spotted Cetus Guard 9950 | -4/Cetus | Spotted Cetus Guard 9950 | -4/Cetus | Spotted Cetus Guard 9971 | -4/Cetus | Destroyed Cetus Guard 9972 | -4/Cetus | Allies destroyed Cetus Guard 9973 | -4/Cetus | Allies destroyed Cetus Guard 9974 | -4/Cetus | Allies destroyed Cetus Guard 9978 | -4/Cetus | Extracted ID and sensor layout for unrecognized location from A7's data core 9995 | -4/Cetus | Found Prototype Protection 9995 | -4/Cetus | Identified Med. Regenerative Plating 10002 | -4/Cetus | Lost 3 allies 10028 | -4/Cetus | Identified exit to Archives 10043 | -4/Cetus | Entered Archives 10043 | -4/Archives | Accompanied by 7 allies 10106 | -4/Archives | Discovered new exit (range 16) 10118 | -4/Archives | Discovered new exit (range 16) 10138 | -4/Archives | Discovered exit to Research (range 16) 10214 | -4/Archives | Identified exit to Hub_04(d) 10432 | -4/Archives | Entered Hub_04(d) 10432 | -4/Hub_04(d) | Accompanied by 6 allies 10548 | -4/Hub_04(d) | Network Hub disabled 10549 | -4/Hub_04(d) | Core integrity fell below 50% 10574 | -4/Hub_04(d) | Spotted Lightning 10581 | -4/Hub_04(d) | Spotted Lightning 10585 | -4/Hub_04(d) | Spotted Lightning 10611 | -4/Hub_04(d) | Spotted Lightning 10612 | -4/Hub_04(d) | Spotted Lightning 10616 | -4/Hub_04(d) | System corruption reached 10% 10619 | -4/Hub_04(d) | Spotted Lightning 10664 | -4/Hub_04(d) | Discovered exit to Research (range 8) 10667 | -4/Hub_04(d) | Core integrity fell below 20% 10677 | -4/Hub_04(d) | Entered Research 10677 | -3/Research | Evolved 2 slots: Power x1, Propulsion x1 10678 | -3/Research | Identified exit to Research 10678 | -3/Research | Identified exit to Quarantine 10775 | -3/Research | Core integrity fell below 50% 10791 | -3/Research | Lost 19 parts (7n8u4w) 10823 | -3/Research | Fabricated Plasma Cutter? 10871 | -3/Research | Discovered exit to Research (range 16) 10877 | -3/Research | Revision forces began assault on 0b10 10879 | -3/Research | Spotted B-86 Titan 10898 | -3/Research | Loaded intel: 5 recycling unit locations 10946 | -3/Research | Lost 3 parts (1n1u1w) 10948 | -3/Research | Core integrity fell below 20% 10992 | -3/Research | Lost 4 parts (2p1n1u) 10997 | -3/Research | Build established: Mutant 11010 | -3/Research | Lost 8 allies 11012 | -3/Research | Destroyed by H-77 Assassin with Coil Gun Last Messages --------------- 10976_ Acquired Com. Wheel. 10978_ Slug penetrates Terminal. 10985_ Acquired 79 matter. 10994_ System corrupted: IFF burst signal emitted. 10994_ Acquired Hyp. Railgun. 11000_ Triggered Blade Trap. 11000_ Massive razor-sharp blades shoot up from within the floor. 11000_ Hvy. Wave Gun severed. 11000_ Hyp. Railgun severed. 11000_ Backup Power III severed. 11000_ Backup Power III disintegrated. 11002_ P-80 Master suffers critical hit (Burn). 11002_ Acquired Hyp. Railgun. 11003_ P-80 Master critical meltdown. 11009_ Slug penetrates Revision. 11012_ Slug penetrates Wall. 11012_ Slug penetrates Revision. 11012_ Penetrated by Slug. Map ----- +----------------------------------------------------+ | # + """ """ #????????????????????????????? | | # # "S """ #????????????????????????????? | | # # "" """ #????????????????????????????? | | # # "" """ #????????????????????????????? | | ### # #????????????????????????????? | | + # #????????????????????????????? | | # # #????????????????????????????? | | # # #????????????????????????????? | | # ##############????????????????????????????? | | # # ????????????????????????????? | | # # ????????????????????????????? | | # # ????????????????????????????? | | # + ????????????????????????????? | | ??# #?????????????????????????????????????????? | | ### ! #?????????????????????????????????????????? | | [=! ##################????????????????????????? | | ## [ ## """T""" #????????????????????????? | | !*! =%% """ """ ##???????????????????????? | | [ * #???????????????????????? | | ! #????????????????????????? | | #????????????????????????? | | #????????????????????????? | | /#????????????????????????? | | ] ####+######????????????????????????? | | ##?# [######### #??????????????? | | #??# %hv%! @ %< ; [[ ????????? | | ##??# h##v###### = #??????????????? | | """ """ #???# ## #??????????????????????? | | """T""" #??## ## #??????????????????????? | | #############??# # #??????????????????????? | | ??????????????## # #??????????????????????? | | ??????? /[ !#??????????????????????? | | ??????????????## # #??????????????????????? | | ???????????????# = # #??????????????????????? | | ???????????????####### #??????????????????????? | | ?????????????????????# #??????????????????????? | | ?????????????????????######??????????????????????? | | ?????????????????????????????????????????????????? | | | | | | | | | | | | | | | | | | | | | | | | | +----------------------------------------------------+ Best States ------------- Heat Dissipation 89 Coolant Potential 120 Energy Generation 35 Energy Capacity 350 Matter Stores 300 Matter Capacity 300 Sight Range 16 Robot Scan Range 16 Terrain Scan Density 10 Power Amplification 20 Additional Mass Support 16 Armor Coverage 675 Resistance: KI 20 Evasion (%) 65 Targeting Accuracy 12 Recoil Reduction 6 Particle Charging 20 Offensive Hacking 24 Defensive Hacking 36 Authchip Count 6 Item Schematics ----------------- Imp. Hacking Suite | -6/Factory | Hacked Plasma Cutter | -6/Factory | Hacked Imp. Sensor Array | -4/Factory | Hacked Adv. Sensor Array | -4/Factory | Hacked Robot Schematics ------------------ None Fabricated ------------ Imp. Hacking Suite | x1 | -6/Factory | Authchip Plasma Cutter | x2 | -5/Factory | Authchip Plasma Cutter | x2 | -3/Research | Authchip Repaired ---------- Nothing Alien Tech Used ----------------- None Achievements -------------- None Challenges ------------ None Game ------ Seed BladeNodeMatrix Manual? 0 Play Time 03:39:32 Cumulative 221.1 hours Start 2025.05.25 @ 22:42:28 End 2025.05.26 @ 11:50:22 Sessions 9 Manual Loads 0 Difficulty Rogue Special Mode None Game No. 208 Rogue 208 Adventurer 0 Explorer 0 Win Type - Total 1 Types 1/0/0/0/0/0/0/0/0/0 Lore% 73 Gallery% 60 Achievement% 49 Wizard Run 0 Options --------- Layout 1 ASCII 0 Keyboard 0 Movement Mouse Keybinds 0 Fullscreen 1 Font 24/Smallcaps Map View 50x35 Zoom Use 0% Tactical HUD 1 Map Filters NONE Filters NONE Steam 1 RUN: 0f677e47-6142-4e6e-8a5d-d8e0400bdbfe